fUSD/lending_fUSD_20250211
["ID","MTS","AMOUNT","RATE_DAILY","PERIOD"]
[352776884,1739304639207,-500.0,0.00018998,2]
[352776886,1739304639216,-500.0,0.00018998,2]
[352776888,1739304639225,-500.0,0.00018998,2]
[352776890,1739304639239,-500.0,0.00018998,2]
[352776892,1739304639248,-500.0,0.00018998,2]
[352776894,1739304639258,-500.0,0.00018998,2]
[352776896,1739304639267,-500.0,0.00018998,2]
[352776898,1739304639276,-500.0,0.00018998,2]
[352776900,1739304639286,-500.0,0.00018998,2]
[352776902,1739304639295,-500.0,0.00018998,2]
[352776904,1739304639304,-522.94773151,0.00018998,2]
[352776906,1739304639313,-500.0,0.00018998,2]
[352776908,1739304639324,-500.0,0.00018998,2]
[352776910,1739304639333,-500.0,0.00018998,2]
[352776912,1739304639342,-500.0,0.00018998,2]
[352776914,1739304639352,-500.0,0.00018998,2]
[352776916,1739304639361,-500.0,0.00018998,2]
[352776918,1739304639370,-500.0,0.00018998,2]
[352776920,1739304639379,-500.0,0.00018998,2]
[352776922,1739304639388,-500.0,0.00018998,2]
[352776924,1739304639397,-500.0,0.00018998,2]
[352776926,1739304639408,-500.0,0.00018998,2]
[352776928,1739304639418,-500.0,0.00018998,2]
[352776930,1739304639427,-500.0,0.00018998,2]
[352776933,1739304639437,-500.0,0.00018998,2]
[352776934,1739304639446,-500.0,0.00018998,2]
[352776937,1739304639456,-617.98,0.00018998,2]
[352776939,1739304639466,-500.0,0.00018998,2]
[352776941,1739304639476,-500.0,0.00018998,2]
[352776943,1739304639485,-222.83983979,0.00018998,2]
[352776945,1739304639494,-500.0,0.00018998,2]
[352776947,1739304639503,-500.0,0.00018998,2]
[352776948,1739304639512,-500.0,0.00018998,2]
[352776950,1739304639521,-501.04334562,0.00018998,2]
[352776952,1739304639530,-500.0,0.00018998,2]
[352776954,1739304639539,-500.0,0.00018998,2]
[352776956,1739304639549,-501.67961428,0.00018998,2]
[352776958,1739304639558,-500.0,0.00018998,2]
[352776960,1739304639567,-500.0,0.00018998,2]
[352776962,1739304639576,-500.0,0.00018998,2]
[352776964,1739304639585,-500.0,0.00018998,2]
[352776966,1739304639596,-500.0,0.00018998,2]
[352776968,1739304639606,-500.0,0.00018998,2]
[352776970,1739304639615,-500.0,0.00018998,2]
[352776972,1739304639625,-500.0,0.00018998,2]
[352776974,1739304639634,-500.0,0.00018998,2]
[352776976,1739304639643,-500.0,0.00018998,2]
[352776978,1739304639654,-500.0,0.00018998,2]
[352776980,1739304639663,-500.0,0.00018998,2]
[352776982,1739304639673,-522.16167733,0.00018998,2]
[352776984,1739304639683,-500.0,0.00018998,2]
[352776986,1739304639692,-500.0,0.00018998,2]
[352776988,1739304639701,-500.0,0.00018998,2]
[352776990,1739304639711,-500.0,0.00018998,2]
[352776992,1739304639720,-500.0,0.00018998,2]
[352776994,1739304639729,-500.0,0.00018998,2]
[352776996,1739304639739,-500.0,0.00018998,2]
[352776998,1739304639748,-585.24,0.00018998,2]
[352777000,1739304639758,-500.0,0.00018998,2]
[352777002,1739304639767,-500.0,0.00018998,2]
[352777004,1739304639777,-500.0,0.00018998,2]
[352777006,1739304639787,-500.0,0.00018998,2]
[352777008,1739304639798,-500.0,0.00018998,2]
[352777010,1739304639808,-503.5492988,0.00018998,2]
[352777012,1739304639820,-500.0,0.00018998,2]
[352777014,1739304639829,-500.0,0.00018998,2]
[352777016,1739304639839,-500.0,0.00018998,2]
[352777018,1739304639848,-500.0,0.00018998,2]
[352777020,1739304639857,-505.97324159,0.00018998,2]
[352777022,1739304639867,-500.0,0.00018998,2]
[352777024,1739304639881,-500.0,0.00018998,2]
[352777026,1739304639890,-523.11958217,0.00018998,2]
[352777028,1739304639899,-500.0,0.00018998,2]
[352777030,1739304639910,-500.0,0.00018998,2]
[352777032,1739304639920,-500.0,0.00018998,2]
[352777034,1739304639930,-500.0,0.00018998,2]
[352777036,1739304639939,-500.0,0.00018998,2]
[352777038,1739304639950,-500.0,0.00018998,2]
[352777040,1739304639959,-508.6192946,0.00018998,2]
[352777042,1739304639968,-500.0,0.00018998,2]
[352777044,1739304639977,-500.0,0.00018998,2]
[352777046,1739304639986,-500.0,0.00018998,2]
[352777048,1739304639995,-500.0,0.00018998,2]
[352777050,1739304640005,-500.0,0.00018998,2]
[352777052,1739304640014,-501.77659537,0.00018998,2]
[352777053,1739304640024,-500.0,0.00018998,2]
[352777056,1739304640034,-500.0,0.00018998,2]
[352777058,1739304640043,-500.0,0.00018998,2]
[352777059,1739304640053,-500.0,0.00018998,2]
[352777062,1739304640063,-500.0,0.00018998,2]
[352777063,1739304640073,-500.0,0.00018998,2]
[352777065,1739304640083,-500.0,0.00018998,2]
[352777067,1739304640092,-500.0,0.00018998,2]
[352777069,1739304640103,-500.0,0.00018998,2]
[352777071,1739304640112,-500.58157741,0.00018998,2]
[352777073,1739304640122,-500.0,0.00018998,2]
[352777075,1739304640131,-500.0,0.00018998,2]
[352777078,1739304640144,-500.0,0.00018998,2]
[352777080,1739304640155,-500.0,0.00018998,2]
[352777082,1739304640164,-500.0,0.00018998,2]
[352777084,1739304640174,-606.0,0.00018998,2]
[352777086,1739304640184,-203.92017568,0.00018998,2]
[352777088,1739304640194,-500.0,0.00018998,2]
[352777090,1739304640204,-500.0,0.00018998,2]
[352777092,1739304640214,-500.0,0.00018998,2]
[352777094,1739304640224,-500.0,0.00018998,2]
[352777096,1739304640233,-500.0,0.00018998,2]
[352777098,1739304640243,-539.5499241,0.00018998,2]
[352777100,1739304640253,-500.0,0.00018998,2]
[352777102,1739304640264,-500.0,0.00018998,2]
[352777104,1739304640273,-500.0,0.00018998,2]
[352777106,1739304640283,-500.0,0.00018998,2]
[352777108,1739304640294,-500.0,0.00018998,2]
[352777110,1739304640304,-417.32985462,0.00018998,2]
[352777112,1739304640314,-500.0,0.00018998,2]
[352777114,1739304640324,-500.0,0.00018998,2]
[352777116,1739304640334,-170.68,0.00018998,2]
[352777118,1739304640344,-500.0,0.00018998,2]
[352777120,1739304640353,-500.0,0.00018998,2]
[352777122,1739304640363,-500.0,0.00018998,2]
[352777124,1739304640373,-500.0,0.00018998,2]
[352777126,1739304640382,-562.42243468,0.00018998,2]
[352777128,1739304640391,-501.93307458,0.00018998,2]
[352777130,1739304640403,-504.344437,0.00018998,2]
[352777132,1739304640412,-500.0,0.00018998,2]
[352777134,1739304640421,-505.25345185,0.00018998,2]
[352777136,1739304640430,-503.48444046,0.00018998,2]
[352777138,1739304640440,-500.0,0.00018998,2]
[352777140,1739304640449,-500.0,0.00018998,2]
[352777142,1739304640458,-500.0,0.00018998,2]
[352777144,1739304640467,-500.0,0.00018998,2]
[352777146,1739304640476,-500.0,0.00018998,2]
[352777148,1739304640485,-500.0,0.00018998,2]
[352777150,1739304640495,-500.0,0.00018998,2]
[352777152,1739304640505,-500.0,0.00018998,2]
[352777154,1739304640515,-500.0,0.00018998,2]
[352777156,1739304640524,-500.0,0.00018998,2]
[352777158,1739304640534,-500.0,0.00018998,2]
[352777160,1739304640544,-500.0,0.00018998,2]
[352777162,1739304640554,-513.66711507,0.00018998,2]
[352777164,1739304640564,-340.10643537,0.00018998,2]
[352777166,1739304640574,-500.0,0.00018998,2]
[352777168,1739304640584,-500.0,0.00018998,2]
[352777170,1739304640594,-500.0,0.00018998,2]
[352777172,1739304640603,-500.0,0.00018998,2]
[352777174,1739304640615,-501.87743306,0.00018998,2]
[352777176,1739304640626,-238.16651159,0.00018998,2]
[352777179,1739304640642,-500.0,0.00018998,2]
[352777181,1739304640655,-500.0,0.00018998,2]
[352777183,1739304640668,-500.0,0.00018998,2]
[352777185,1739304640679,-501.42318138,0.00018998,2]
[352777188,1739304640691,-500.0,0.00018998,2]
[352777190,1739304640701,-500.0,0.00018998,2]
[352777192,1739304640712,-500.0,0.00018998,2]
[352777194,1739304640722,-500.0,0.00018998,2]
[352777196,1739304640734,-500.0,0.00018998,2]
[352777198,1739304640744,-500.0,0.00018998,2]
[352777201,1739304640756,-500.0,0.00018998,2]
[352777203,1739304640768,-500.0,0.00018998,2]
[352777205,1739304640779,-500.0,0.00018998,2]
[352777207,1739304640790,-500.0,0.00018998,2]
[352777209,1739304640802,-500.0,0.00018998,2]
[352777212,1739304640812,-500.0,0.00018998,2]
[352777214,1739304640824,-500.0,0.00018998,2]
[352777216,1739304640836,-500.0,0.00018998,2]
[352777218,1739304640848,-500.0,0.00018998,2]
[352777221,1739304640860,-611.13,0.00018998,2]
[352777223,1739304640879,-500.0,0.00018998,2]
[352777225,1739304640890,-591.9707838,0.00018998,2]
[352777227,1739304640900,-583.99,0.00018998,2]
[352777229,1739304640912,-500.0,0.00018998,2]
[352777231,1739304640922,-500.0,0.00018998,2]
[352777233,1739304640932,-500.0,0.00018998,2]
[352777235,1739304640943,-500.0,0.00018998,2]
[352777238,1739304640956,-500.0,0.00018998,2]
[352777240,1739304640967,-500.0,0.00018998,2]
[352777242,1739304640978,-500.0,0.00018998,2]
[352777244,1739304640988,-500.0,0.00018998,2]
[352777246,1739304641000,-500.0,0.00018998,2]
[352777248,1739304641010,-500.0,0.00018998,2]
[352777251,1739304641022,-428.875,0.00018998,2]
[352777253,1739304641033,-500.0,0.00018998,2]
[352777255,1739304641051,-500.0,0.00018998,2]
[352777257,1739304641063,-500.0,0.00018998,2]
[352777259,1739304641075,-500.0,0.00018998,2]
[352777262,1739304641086,-500.0,0.00018998,2]
[352777264,1739304641099,-1824.46,0.00018998,2]
[352777266,1739304641110,-1824.46,0.00018998,2]
[352777268,1739304641120,-1824.46,0.00018998,2]
[352777271,1739304641132,-500.0,0.00018998,2]
[352777273,1739304641144,-500.0,0.00018998,2]
[352777275,1739304641155,-500.0,0.00018998,2]
[352777277,1739304641166,-527.39,0.00018998,2]
[352777279,1739304641177,-211.43,0.00018998,2]
[352777282,1739304641188,-500.0,0.00018998,2]
[352777284,1739304641199,-500.0,0.00018998,2]
[352777286,1739304641211,-500.0,0.00018998,2]
[352777288,1739304641222,-423.68,0.00018998,2]
[352777290,1739304641232,-500.0,0.00018998,2]
[352777292,1739304641243,-500.0,0.00018998,2]
[352777295,1739304641255,-500.0,0.00018998,2]
[352777297,1739304641265,-500.0,0.00018998,2]
[352777299,1739304641277,-500.0,0.00018998,2]
[352777301,1739304641290,-500.0,0.00018998,2]
[352777304,1739304641302,-500.0,0.00018998,2]
[352777306,1739304641313,-500.0,0.00018998,2]
[352777308,1739304641325,-347.6720065,0.00018998,2]
[352777310,1739304641337,-500.0,0.00018998,2]
[352777312,1739304641349,-187.11015251,0.00018998,2]
[352777314,1739304641359,-500.0,0.00018998,2]
[352777317,1739304641369,-500.0,0.00018998,2]
[352777319,1739304641379,-500.0,0.00018998,2]
[352777321,1739304641390,-500.0,0.00018998,2]
[352777323,1739304641401,-382.83,0.00018998,2]
[352777325,1739304641412,-500.0,0.00018998,2]
[352777327,1739304641423,-505.02792134,0.00018998,2]
[352777329,1739304641435,-500.0,0.00018998,2]
[352777330,1739304641447,-500.0,0.00018998,2]
[352777331,1739304641459,-500.0,0.00018998,2]
[352777332,1739304641469,-500.0,0.00018998,2]
[352777333,1739304641479,-500.0,0.00018998,2]
[352777334,1739304641489,-500.0,0.00018998,2]
[352777335,1739304641499,-500.0,0.00018998,2]
[352777336,1739304641509,-500.0,0.00018999,2]
[352777337,1739304641519,-1824.46,0.00018999,2]
[352777338,1739304641530,-1824.46,0.00018999,2]
[352777339,1739304641541,-1223.95,0.00018999,2]
[352777341,1739304641552,-26476.00076726,0.00019,2]
[352777343,1739304641564,-53578.48472515,0.00019,2]
[352777346,1739304641575,-77198.75300215,0.00019,2]
[352777348,1739304641585,-7598.56064262,0.00019,2]
[352777350,1739304641596,-961.61,0.00019,2]
[352777352,1739304641606,-3713.83148957,0.00019,2]
[352777354,1739304641616,-8931.99479051,0.00019,2]
[352777356,1739304641626,-4500.0,0.00019,2]
[352777358,1739304641636,-900.0,0.00019,20]
[352777360,1739304641647,-68054.74525555,0.00019,2]
[352777362,1739304641658,-19439.44038209,0.00019,2]
[352777364,1739304641668,-800.17693274,0.00019,2]
[352777366,1739304641679,-2779.86,0.00019,2]
[352777369,1739304641689,-6216.0494579,0.00019,2]
[352777372,1739304641710,-1537.22575473,0.00019,2]
[352777374,1739304641723,-93711.32149551,0.00019,14]
[352777393,1739304641892,-1200.16839912,0.00019,14]
[352777395,1739304641905,-290.84940244,0.00019,14]
[352777397,1739304641919,-2994.11407819,0.00019,14]
[352777400,1739304641932,-294.96341501,0.00019,14]
[352777402,1739304641946,-3815.0994672,0.00019,14]
[352777404,1739304641959,-71163.64466266,0.00019,14]
[352777407,1739304641975,-530.02867876,0.00019,14]
[352777410,1739304641992,-92298.45958895,0.00019,14]
[352777553,1739304643175,-500.0,0.00018896,2]
[352777555,1739304643187,-10000.0,0.00018897,2]
[352777557,1739304643198,-207.7498434,0.00018998,2]
[352777559,1739304643209,-35518.14971662,0.00019,14]
[352777577,1739304643413,-1198.19159945,0.00019,14]
[352777666,1739304646064,-500.0,0.00018896,2]
[352777668,1739304646075,-4280.55291178,0.00019,14]
[352777681,1739304646222,-3033.03372191,0.00019,14]
[352777682,1739304646383,-347.6720065,0.00019,14]
[352777694,1739304733680,746.8267,8.836e-05,2]
[352777748,1739305832276,-1384.383,8.973e-05,2]
[352777749,1739305832286,-302.17320406,9e-05,3]
[352777750,1739305832302,-500.0,9.87e-05,2]
[352777751,1739305832318,-2629.44379594,0.0001,2]
[352777752,1739305832334,-6100.2400172,0.0001,2]
[352777753,1739305832390,-1301.94,0.0001,2]
[352777754,1739305832503,-522.3652808,0.0001,2]
[352777755,1739305832514,-1244.15535,0.0001,2]
[352777756,1739305832525,-1805.281405,0.0001,2]
[352777844,1739305838178,-1267.43912775,0.0001,2]
[352777845,1739305838191,-5852.47830461,0.0001,2]
[352777846,1739305838243,-318.20514,0.0001,2]
[352777847,1739305838254,-21000.0,0.0001,2]
[352777848,1739305838266,-1949.5,0.0001,2]
[352777849,1739305838302,-5559.0,0.0001,2]
[352777850,1739305838360,-2737.11446961,0.0001,2]
[352777910,1739305840235,-712.0412221,0.0001,2]
[352777911,1739305840249,-2383.13,0.0001,2]
[352777912,1739305840260,-294.97928998,0.0001,2]
[352777913,1739305840291,-1034.6788,0.0001,2]
[352777914,1739305840303,-2213.81361521,0.0001,2]
[352777915,1739305840458,-337.49271723,0.0001,2]
[352777916,1739305840469,-177449.78396342,0.0001,2]
[352777917,1739305840478,-8059.53217089,0.0001,2]
[352777918,1739305840488,-198.62,0.00010137,2]
[352777919,1739305840496,-190.38292148,0.00010879,2]
[352777920,1739305840505,-500.0,0.00010879,2]
[352777921,1739305840514,-500.0,0.00010879,2]
[352777922,1739305840524,-258.46856333,0.00010879,2]
[352777923,1739305840533,-495.10193,0.00010879,2]
[352777924,1739305840543,-365.98592846,0.00010879,2]
[352777925,1739305840552,-500.0,0.00010879,2]
[352777926,1739305840562,-500.0,0.00010879,2]
[352777927,1739305840571,-500.0,0.00010879,2]
[352777928,1739305840581,-500.0,0.00010879,2]
[352777929,1739305840591,-500.0,0.00010879,2]
[352777930,1739305840602,-500.0,0.00010879,2]
[352777931,1739305840614,-206030.85775755,0.0001088,2]
[352777932,1739305840624,-500.0,0.00010986,2]
[352777933,1739305840635,-12278.42760646,0.00011099,2]
[352777934,1739305840644,-12278.42760641,0.00011888,2]
[352777935,1739305840655,-500.0,0.0001195,2]
[352777936,1739305840664,-510.22,0.00012116,2]
[352777937,1739305840675,-2000.0,0.00012197,2]
[352777939,1739305840686,-1000.0,0.00012498,2]
[352777941,1739305840695,-283.31,0.00012568,2]
[352777942,1739305840704,-12278.42760641,0.0001289,2]
[352777943,1739305840714,-150.65,0.0001299,2]
[352777944,1739305840725,-150.65,0.0001299,2]
[352777945,1739305840735,-150.65,0.0001299,2]
[352777946,1739305840745,-150.65,0.0001299,2]
[352777947,1739305840756,-150.65,0.0001299,2]
[352777948,1739305840766,-150.65,0.0001299,2]
[352777949,1739305840775,-150.65,0.0001299,2]
[352777950,1739305840786,-250.0,0.00013,2]
[352777951,1739305840796,-205.85,0.00013,2]
[352777952,1739305840806,-64358.63976348,0.00013,2]
[352777953,1739305840823,-1347.0,0.00013,2]
[352777965,1739305843458,-489.84259757,0.00013,2]
[352777967,1739305846246,-15440.91842895,0.00013,2]
[352777968,1739305846259,-9480.55661406,0.00013,2]
[352777969,1739305846271,-20091.63381721,0.00013,2]
[352777970,1739305846283,-13886.59135991,0.00013,2]
[352777971,1739305846305,-3029.10425445,0.00013,2]
[352777972,1739305846317,-6062.64759531,0.00013,2]
[352777973,1739305846329,-2633.17095762,0.00013,2]
[352777974,1739305846341,-516.89903115,0.00013,2]
[352777975,1739305846373,-5313.61,0.00013,2]
[352777976,1739305846385,-18795.00349696,0.00013,2]
[352777977,1739305846414,-3690.36352469,0.00013,2]
[352777978,1739305846620,-4998.0,0.00013,2]
[352777979,1739305846632,-179013.85909509,0.00013,2]
[352777980,1739305846643,-459.58986104,0.00013,2]
[352777981,1739305846655,-337.80927,0.00013,2]
[352777982,1739305846666,-384.50318454,0.00013,2]
[352777983,1739305846687,-533.59496,0.00013,2]
[352777985,1739305846699,-497.00601712,0.00013,2]
[352778111,1739306281245,4222.85597227,0.0002,120]
[352778686,1739307032450,-168.2,0.00010137,2]
[352778687,1739307032462,-776.6,0.00011306,2]
[352778688,1739307032472,-443.80156239,0.00012312,2]
[352778689,1739307032483,-800.96843761,0.00012312,2]
[352778690,1739307032493,-250.0,0.00012386,2]
[352778691,1739307032502,-405.5982407,0.00012434,2]
[352778692,1739307032513,-994.8,0.00012434,2]
[352778693,1739307032524,-599.6017593,0.00012434,2]
[352778694,1739307032533,-1455.09555289,0.00012505,2]
[352778695,1739307032562,-643.06444711,0.00012505,2]
[352778696,1739307032572,-1338.7,0.00012542,2]
[352778697,1739307032581,-2000.0,0.00012628,2]
[352778698,1739307032591,-169.97,0.00012667,2]
[352778699,1739307032601,-1000.0,0.00012705,2]
[352778700,1739307032613,-150.0,0.00012712,2]
[352778701,1739307032623,-431.83725236,0.00012725,2]
[352778702,1739307032633,-2998.73,0.0001274,2]
[352778703,1739307032642,-176.498,0.0001274,2]
[352778704,1739307032653,-251.88,0.00012877,2]
[352778705,1739307032662,-984.27422215,0.000129,2]
[352778706,1739307032671,-8594.89932455,0.000129,2]
[352778707,1739307032680,-320.92967085,0.000129,2]
[352778708,1739307032690,-2080.61,0.0001296,2]
[352778709,1739307032700,-500.0,0.00012973,2]
[352778710,1739307032711,-443.90021445,0.00012999,2]
[352778711,1739307032720,-45338.34826839,0.00013,2]
[352778712,1739307032732,-6550.0219998,0.00013,2]
[352778713,1739307032744,-662.75,0.00013,2]
[352778714,1739307032755,-301.52774393,0.00013,2]
[352778715,1739307032767,-550.0,0.00013,2]
[352778716,1739307032779,-138240.80825163,0.00013,2]
[352778732,1739307038341,-24461.63579654,0.00013,2]
[352778733,1739307038353,-2722.61887063,0.00013,2]
[352778734,1739307038396,-122289.80892674,0.00013,2]
[352778735,1739307038408,-491.49756128,0.00013,2]
[352778736,1739307038510,-95479.38313076,0.00013,2]
[352778749,1739307040403,-681.71857906,0.00013,2]
[352778750,1739307040415,-391.97499999,0.00013,2]
[352778751,1739307040427,-2379.7477592,0.00013,2]
[352778752,1739307040458,-441.02668221,0.00013,2]
[352778753,1739307040471,-773.490015,0.00013,2]
[352778754,1739307040482,-4026.8,0.00013,2]
[352778755,1739307040567,-333.32799178,0.00013,2]
[352778756,1739307040625,-1406.51246176,0.00013,2]
[352778783,1739307043461,-2652.78422499,0.00013,2]
[352778797,1739307046396,-2064.03944408,0.00013,2]
[352778798,1739307046454,-342.25611045,0.00013,2]
[352778799,1739307046566,-1024.15,0.00013,2]
[352778808,1739307102659,16203.177,8.836e-05,2]
[352778809,1739307128806,2911.7662,8.836e-05,2]
[352778810,1739307139609,984.236,8.699e-05,2]
[352778811,1739307153154,1698.1318,8.699e-05,2]
[352778812,1739307180474,22267.6763,8.836e-05,2]
[352778815,1739307370355,4943.2274,8.836e-05,2]
[352778819,1739307474345,17532.1285,8.836e-05,2]
[352778820,1739307489991,4653.6978,8.699e-05,2]
[352778821,1739307502305,239.9145,8.699e-05,2]
[352778822,1739307541452,266.6091,8.699e-05,2]
[352778823,1739307547638,921.0917,8.699e-05,2]
[352778824,1739307745386,669.5971,8.836e-05,2]
[352778826,1739307810792,150.0,0.00018369,120]
[352778827,1739307895823,-500.0,8.851e-05,2]
[352778828,1739307895845,-688.5184,8.851e-05,2]
[352778829,1739307895866,-3644.4435,8.973e-05,2]
[352778830,1739307895892,-5167.0381,8.973e-05,2]
[352778831,1739307904299,-1959.79889391,8.973e-05,2]
[352778832,1739307904322,-543.71590714,8.973e-05,2]
[352778833,1739307904344,-1957.48519895,8.973e-05,2]
[352778838,1739308062844,200.9406,8.836e-05,2]
[352778839,1739308102560,-300.0,8.972e-05,2]
[352778840,1739308102581,-3996.0201,8.973e-05,2]
[352778841,1739308102607,-4999.9799,8.973e-05,2]
[352778842,1739308216049,-0.0201,8.973e-05,2]
[352778843,1739308216081,-887.9799,8.973e-05,2]
[352778845,1739308231515,-2382.9006,8.973e-05,2]
[352778846,1739308231525,-500.0,9.736e-05,2]
[352778847,1739308231534,-434.3,0.00010137,2]
[352778848,1739308231544,-5670.70415835,0.00010708,2]
[352778849,1739308231554,-500.0,0.00010709,2]
[352778850,1739308231563,-163.35,0.00010959,2]
[352778851,1739308231572,-250.0,0.00011277,2]
[352778852,1739308231582,-23900.0,0.00011281,2]
[352778853,1739308231591,-5861.32,0.00011397,2]
[352778854,1739308231600,-2000.0,0.00011412,2]
[352778855,1739308231610,-704.77,0.0001166,2]
[352778856,1739308231619,-2313.43,0.00011664,2]
[352778857,1739308231628,-500.0,0.00011808,2]
[352778858,1739308231638,-184.51,0.00011861,2]
[352778859,1739308231647,-1052.86,0.00011877,2]
[352778860,1739308231657,-1000.0,0.00011973,2]
[352778861,1739308231667,-743.3,0.00012029,2]
[352778862,1739308231676,-162.39,0.0001209,2]
[352778863,1739308231686,-500.0,0.00012203,2]
[352778864,1739308231695,-200.0,0.00012255,2]
[352778865,1739308231705,-150.0,0.00012255,2]
[352778866,1739308231715,-301.1,0.00012313,2]
[352778867,1739308231724,-343.83,0.00012366,2]
[352778868,1739308231733,-1135.63,0.00012524,2]
[352778869,1739308231743,-431.83725236,0.00012711,2]
[352778870,1739308231752,-362.47727142,0.0001277,2]
[352778871,1739308231761,-36448.15,0.00012865,2]
[352778872,1739308231771,-7735.40939205,0.000129,2]
[352778873,1739308231780,-320.92967083,0.000129,2]
[352778874,1739308231789,-500.0,0.00012973,2]
[352778875,1739308231799,-923.0,0.00012999,2]
[352778876,1739308231808,-279.82759945,0.00012999,2]
[352778877,1739308231819,-500.0,0.00012999,2]
[352778878,1739308231828,-500.0,0.00012999,2]
[352778879,1739308231838,-500.0,0.00012999,2]
[352778880,1739308231847,-500.0,0.00012999,2]
[352778881,1739308231857,-250.0,0.00012999,2]
[352778882,1739308231866,-395.42415129,0.00012999,2]
[352778883,1739308231876,-500.0,0.00012999,2]
[352778884,1739308231885,-500.0,0.00012999,2]
[352778885,1739308231895,-500.0,0.00012999,2]
[352778886,1739308231904,-500.0,0.00012999,2]
[352778887,1739308231914,-500.0,0.00012999,2]
[352778888,1739308231924,-500.0,0.00012999,2]
[352778889,1739308231934,-300.0,0.00012999,2]
[352778890,1739308231944,-500.0,0.00012999,2]
[352778891,1739308231954,-500.0,0.00012999,2]
[352778893,1739308231963,-500.0,0.00012999,2]
[352778894,1739308231973,-500.0,0.00012999,2]
[352778897,1739308231983,-500.0,0.00012999,2]
[352778899,1739308231996,-500.0,0.00012999,2]
[352778901,1739308232007,-500.0,0.00012999,2]
[352778903,1739308232017,-500.0,0.00012999,2]
[352778905,1739308232026,-500.0,0.00012999,2]
[352778907,1739308232036,-500.0,0.00012999,2]
[352778909,1739308232045,-183.85038603,0.00012999,2]
[352778911,1739308232061,-316.14961397,0.00012999,2]
[352778913,1739308232072,-500.0,0.00012999,2]
[352778916,1739308232082,-148.85038603,0.00012999,2]
[352778917,1739308232093,-351.14961397,0.00012999,2]
[352778918,1739308232102,-500.0,0.00012999,2]
[352778919,1739308232112,-229.84898932,0.00012999,2]
[352778923,1739308232149,-270.15101068,0.00012999,2]
[352778925,1739308232159,-485.18962725,0.00012999,2]
[352778927,1739308232168,-500.0,0.00012999,2]
[352778929,1739308232177,-500.0,0.00012999,2]
[352778931,1739308232187,-500.0,0.00012999,2]
[352778933,1739308232196,-500.0,0.00012999,2]
[352778956,1739308232361,-24702.68238717,0.00013,2]
[352778960,1739308232427,-44106.84576,0.00013,2]
[352778962,1739308232439,-64550.01012789,0.00013,2]
[352778964,1739308232451,-504.88528219,0.00013,2]
[352778966,1739308232463,-20095.97099583,0.00013,2]
[352778969,1739308232486,-1368.93615679,0.00013,2]
[352779019,1739308237466,-1000.0,8.973e-05,2]
[352779020,1739308237523,-4000.0,8.973e-05,2]
[352779021,1739308237533,-496.55,0.00011344,2]
[352779022,1739308237542,-814.18,0.00011464,2]
[352779023,1739308237551,-496.55,0.00012762,2]
[352779024,1739308237561,-10917.49273276,0.00013,2]
[352779025,1739308237580,-47820.39264701,0.00013,2]
[352779026,1739308237591,-41548.29126299,0.00013,2]
[352779027,1739308237600,-58257.81658041,0.00013,2]
[352779028,1739308237609,-219.57,0.00013,2]
[352779029,1739308237619,-1304.34585,0.00013,2]
[352779030,1739308237628,-550.0,0.00013,2]
[352779031,1739308237641,-1304.34585,0.0001307,2]